bitfinex-derivatives/quotes_ETHF0:USTF0_20250616
["timestamp","ask_amount","ask_price","bid_price","bid_amount"]
[1750041609547,1.2506,2573.4,2573.0,0.6219]
[1750041609548,0.77715,2573.1,2573.0,0.6219]
[1750041609754,0.77713,2573.2,2573.0,0.6219]
[1750041609936,0.77713,2573.2,2573.0,1.39908]
[1750041610137,2.02767,2573.4,2573.0,3.8297]
[1750041610338,2.02767,2573.4,2573.1,2.02782]
[1750041610339,0.93018799,2573.3,2573.1,2.02782]
[1750041610546,0.93018799,2573.3,2573.0,3.8297]
[1750041610547,0.77714,2573.2,2573.0,4.60686]
[1750041610737,0.77714,2573.2,2573.0,3.8297]
[1750041610938,0.77715,2573.1,2572.9,7.2879]
[1750041611334,0.77714,2573.2,2572.9,8.06511]
[1750041611540,2.04952,2573.3,2573.0,3.2078]
[1750041611741,0.77712,2573.2,2573.0,3.98497]
[1750041612848,0.77712,2573.2,2573.0,3.2078]
[1750041613141,0.77715,2573.1,2572.9,7.2879]
[1750041613346,0.77715,2573.1,2572.9,8.06511]
[1750041614253,0.77714,2573.2,2573.0,0.77717]
[1750041614548,8.96259527,2573.8,2573.1,2.17542125]
[1750041614753,8.96259527,2573.8,2573.3,0.77709]
[1750041614754,0.77704,2573.5,2573.3,0.77709]
[1750041615049,0.77708,2573.4,2573.2,0.7771]
[1750041615244,0.77708,2573.4,2573.3,0.6623]
[1750041616152,0.77705,2573.5,2573.3,0.6623]
[1750041616352,0.77705,2573.5,2573.4,3.2078]
[1750041616548,0.77705,2573.5,2573.3,3.8701]
[1750041617853,0.77705,2573.5,2573.3,4.64719]
[1750041618055,0.77705,2573.5,2573.3,3.8701]
[1750041618454,0.77706,2573.4,2573.3,3.8701]
[1750041619150,1.70755957,2573.4,2573.3,0.6623]
[1750041619456,0.77712,2573.2,2573.1,0.6422]
[1750041619952,0.77721,2572.9,2572.5,2.26066653]
[1750041620151,0.77736,2572.4,2572.3,3.2078]
[1750041620356,3.10649201,2572.4,2571.8,3.98533]
[1750041620650,0.77729,2572.7,2572.3,0.77738]
[1750041620852,0.93066669,2572.6,2572.5,3.2078]
[1750041621054,0.6162,2572.9,2572.5,3.2078]
[1750041621055,0.78308626,2572.8,2572.5,3.98513]
[1750041621259,0.93058925,2572.7,2572.6,0.7773]
[1750041621560,0.78306626,2572.8,2572.5,4.4947]
[1750041621857,0.00582626,2572.8,2572.6,0.7773]
[1750041622049,0.00582626,2572.8,2572.7,2.06417]
[1750041623350,0.00582626,2572.8,2572.7,1.2869]
[1750041623960,0.00582626,2572.8,2572.7,2.06417]
[1750041625252,0.00582626,2572.8,2572.7,1.2869]
[1750041625454,0.00582626,2572.8,2572.7,2.06417]
[1750041625655,0.00582626,2572.8,2572.7,1.2869]
[1750041626161,0.00582626,2572.8,2572.7,2.06417]
[1750041626759,0.00582626,2572.8,2572.5,3.2078]
[1750041626959,0.78308626,2572.8,2572.5,3.98512]
[1750041628053,0.78308626,2572.8,2572.5,3.2078]
[1750041628054,0.7773,2572.6,2572.5,3.2078]
[1750041628454,1.43929,2572.7,2572.5,3.2078]
[1750041628669,0.7773,2572.6,2572.5,3.2078]
[1750041628964,1.43929,2572.7,2572.5,3.2078]
[1750041629352,0.7773,2572.6,2572.5,3.2078]
[1750041631456,1.2827,2572.7,2572.5,3.98513]
[1750041631659,0.00582626,2572.8,2572.7,0.77727]
[1750041631958,0.00582626,2572.8,2572.6,2.03909]
[1750041632564,0.78306626,2572.8,2572.6,1.2618]
[1750041632771,0.00582626,2572.8,2572.6,0.77729]
[1750041632971,0.00582626,2572.8,2572.6,2.13769]
[1750041633668,0.00582626,2572.8,2572.7,0.77727]
[1750041633863,0.00582626,2572.8,2572.7,2.13767]
[1750041636166,0.00582626,2572.8,2572.7,42.93767]
[1750041636674,0.00582626,2572.8,2572.7,46.14547]
[1750041637861,3.2078,2573.3,2573.2,0.77712]
[1750041638066,0.77704,2573.5,2573.3,0.77708]
[1750041638266,3.2078,2574.0,2573.6,0.77698]
[1750041638577,0.77691,2573.9,2573.8,3.2078]
[1750041638965,0.00582626,2574.1,2573.8,3.98472]
[1750041639166,0.7769,2574.0,2573.8,3.2078]
[1750041639370,0.00582626,2574.1,2573.8,3.2078]
[1750041639371,0.00582626,2574.1,2573.8,3.98472]
[1750041639673,0.78269626,2574.1,2573.8,3.98472]
[1750041640078,0.77688,2574.0,2573.8,3.98472]
[1750041640372,0.00582626,2574.1,2573.8,9.8238]
[1750041640576,0.00582626,2574.1,2574.0,0.77688]
[1750041640970,0.77688,2574.0,2573.9,0.6172]
[1750041641170,0.00582626,2574.1,2573.9,0.77689]
[1750041641376,0.00582626,2574.1,2573.8,10.60072]
[1750041641669,0.00582626,2574.1,2573.8,10.4633]
[1750041641873,0.77689,2574.0,2573.8,10.4633]
[1750041642062,0.77691,2573.9,2573.8,3.2078]
[1750041642476,0.77697,2573.7,2573.6,6.62182626]
[1750041642774,0.77695,2573.8,2573.6,6.62182626]
[1750041642962,0.77695,2573.8,2573.6,0.00582626]
[1750041643280,1.35712626,2574.1,2573.6,3.21362626]
[1750041643574,0.77695,2573.8,2573.6,3.21362626]
[1750041644872,0.77693,2573.9,2573.6,3.21362626]
[1750041645066,0.77695,2573.8,2573.6,3.21362626]
[1750041645573,0.77697,2573.7,2573.6,3.21362626]
[1750041647178,2.12217,2573.7,2573.6,3.21362626]
[1750041647772,2.12217,2573.7,2573.6,0.00582626]
[1750041648476,0.6626,2573.8,2573.6,3.21362626]
[1750041648671,0.77697,2573.7,2573.6,0.00582626]
[1750041650776,0.77692,2573.9,2573.6,3.99060626]
[1750041651284,0.6503,2574.0,2573.7,0.6844]
[1750041651470,0.77693,2573.9,2573.7,0.6844]
[1750041651878,0.6503,2574.0,2573.7,0.6844]
[1750041652072,0.6503,2574.0,2573.6,3.21362626]
[1750041652073,0.77697,2573.7,2573.6,3.21362626]
[1750041652272,0.77697,2573.7,2573.6,0.00582626]
[1750041653283,3.98477,2573.7,2573.6,0.00582626]
[1750041653875,5.23377,2573.7,2573.6,0.00582626]
[1750041655576,1.94253,2573.6,2572.9,9.8238]
[1750041655878,0.77718,2573.0,2572.9,9.8238]
[1750041656478,0.77718,2573.0,2572.9,3.2078]
[1750041656679,0.77716,2573.1,2572.9,3.2078]
[1750041657379,0.77718,2573.0,2572.9,3.2078]
[1750041657577,1.3344,2573.1,2572.7,0.00391716]
[1750041657777,0.77724,2572.8,2572.7,0.00391716]
[1750041658079,0.77723,2572.9,2572.7,0.00391716]
[1750041658278,1.4046,2573.0,2572.7,0.78118716]
[1750041658479,0.77721,2572.9,2572.7,0.00391716]
[1750041658873,0.6274,2573.0,2572.7,0.00391716]
[1750041659078,0.6274,2573.0,2572.7,0.78116716]
[1750041659079,1.40459,2573.0,2572.7,0.78116716]
[1750041659280,0.77721,2572.9,2572.7,0.00391716]
[1750041659475,0.6274,2573.0,2572.7,0.00391716]
[1750041659684,1.4046,2573.0,2572.7,0.78118716]
[1750041660289,4.63408,2573.4,2573.1,0.77713]
[1750041660487,3.857,2573.4,2573.2,0.6358]
[1750041661293,3.857,2573.4,2573.3,0.77709]
[1750041661482,3.2078,2573.7,2573.2,0.6358]
[1750041661686,3.98479,2573.7,2573.4,0.77705]
[1750041661884,0.77696,2573.8,2573.6,3.2078]
[1750041662084,2.0378,2574.0,2573.7,0.77695]
[1750041662284,2.0378,2574.0,2573.7,1.39345]
[1750041662895,0.77694,2573.8,2573.7,0.6165]
[1750041663190,0.77692,2573.9,2573.7,0.6165]
[1750041663379,1.2609,2574.0,2573.8,0.77693]
[1750041663589,1.2609,2574.0,2573.7,1.39346]
[1750041663783,0.77691,2573.9,2573.7,0.6165]
[1750041663988,0.77694,2573.8,2573.7,0.6165]
[1750041664285,3.40359,2574.0,2573.7,0.77697]
[1750041664490,2.03781,2574.0,2573.7,3.98476]
[1750041664790,0.78269626,2574.1,2573.8,0.77694]
[1750041665485,0.00582626,2574.1,2574.0,8.33693884]
[1750041665688,4.4532,2574.7,2574.0,10.17985884]
[1750041665886,4.4532,2574.7,2574.0,10.49694196]
[1750041665887,3.2078,2574.7,2574.0,10.49694196]
[1750041666085,3.2078,2574.7,2574.6,0.7767]
[1750041666290,0.77659,2575.0,2574.5,9.8108]
[1750041666489,0.77659,2575.0,2574.7,0.77666]
[1750041666994,2.32976901,2575.6,2574.9,4.35225884]
[1750041667289,3.2567,2577.4,2575.5,4.72542988]
[1750041667594,0.77606,2576.7,2576.6,3.2078]
[1750041667990,8.98385453,2576.7,2576.6,3.2078]
[1750041668287,0.77612,2576.5,2576.4,0.00582626]
[1750041668489,5.10093057,2576.5,2576.4,0.00582626]
[1750041668691,8.02138193,2576.6,2576.3,3.2078]
[1750041668692,0.10238193,2576.6,2576.3,3.2078]
[1750041668896,1.317,2576.4,2576.2,3.2078]
[1750041669289,0.77612,2576.6,2576.2,3.10544962]
[1750041669485,2.65313626,2576.9,2576.5,3.2078]
[1750041669790,1.39974626,2576.9,2576.5,3.2078]
[1750041670393,1.39974626,2576.9,2576.8,3.2078]
[1750041670892,1.39974626,2576.9,2576.8,3.23526526]
[1750041671593,1.39974626,2576.9,2576.8,0.02746526]
[1750041671895,6.39974626,2576.9,2576.8,0.02746526]
[1750041672090,7.65314626,2576.9,2576.8,0.02746526]
[1750041672286,0.77611,2576.6,2576.4,3.21362626]
[1750041672485,1.362,2576.5,2576.4,3.21362626]
[1750041672702,2.13812,2576.5,2576.4,3.21362626]
[1750041673088,0.77621,2576.2,2576.1,3.2078]
[1750041674088,1.362,2576.5,2576.1,3.23528019]
[1750041674296,0.77612,2576.5,2576.4,3.2078]
[1750041674893,0.77612,2576.5,2576.4,3.26276038]
[1750041675098,0.77612,2576.5,2576.4,0.05496038]
[1750041675989,0.69376943,2576.2,2576.1,3.2078]
[1750041676289,0.10981788,2576.4,2576.3,0.77618]
[1750041676490,0.10981788,2576.4,2576.3,5.12843884]
[1750041676688,0.78183626,2576.9,2576.3,4.35225884]
[1750041677003,0.00582626,2576.9,2576.8,3.98383]
[1750041677293,1.2688,2577.7,2577.2,0.77588]
[1750041677495,0.77582,2577.5,2577.4,3.2078]
[1750041677690,0.77582,2577.5,2577.4,3.23519947]
[1750041678092,0.77582,2577.5,2577.4,3.26259894]
[1750041679288,0.77582,2577.5,2577.4,3.3894252]
[1750041679692,0.77582,2577.5,2577.4,3.23537283]
[1750041681598,0.77582,2577.5,2577.4,0.1816252]
[1750041682002,0.77582,2577.5,2577.4,3.3894252]
[1750041682199,2.01612,2577.5,2577.4,0.1816252]
[1750041682400,2.01612,2577.5,2577.4,3.3894252]
[1750041682401,0.77582,2577.5,2577.4,3.3894252]
[1750041682900,2.01612,2577.5,2577.4,3.3894252]
[1750041683103,0.77582,2577.5,2577.4,3.3894252]
[1750041684803,0.77582,2577.5,2577.4,3.41668264]
[1750041685396,0.00582626,2577.7,2577.4,8.54477148]
[1750041685597,0.00582626,2577.7,2577.6,0.77579]
[1750041685801,0.6712,2578.4,2577.7,0.77574]
[1750041686000,0.77563,2578.2,2578.0,3.2078]
[1750041686200,0.77564,2578.1,2578.0,3.2078]
[1750041686903,0.77564,2578.1,2578.0,3.38619305]
[1750041687298,0.00582626,2578.3,2578.0,3.38619305]
[1750041687299,0.00582626,2578.3,2578.0,19.32745189]
[1750041687504,0.77537,2579.1,2578.3,4.35225884]
[1750041687700,1.93821,2579.3,2578.6,3.2078]
[1750041687897,0.77546,2578.7,2578.6,3.2078]
[1750041688095,4.35225884,2578.9,2578.3,3.2078]
[1750041688311,5.69305884,2578.6,2577.9,3.8343]
[1750041688508,1.93889,2578.4,2577.6,44.0078]
[1750041688694,0.77573,2577.9,2577.6,44.0078]
[1750041688901,0.05048324,2577.8,2577.6,44.0078]
[1750041689203,0.05048324,2577.8,2577.6,48.36005884]
[1750041689400,0.82621324,2577.8,2577.6,3.2078]
[1750041689605,0.05048324,2577.8,2577.7,6.588]
[1750041690597,0.82621324,2577.8,2577.7,6.588]
[1750041690799,0.05048324,2577.8,2577.7,6.588]
[1750041691005,0.05048324,2577.8,2577.7,7.9546]
[1750041691303,0.82621324,2577.8,2577.7,7.9546]
[1750041691796,0.82621324,2577.8,2577.7,6.587]
[1750041692002,0.05048324,2577.8,2577.7,6.587]
[1750041692199,0.82621324,2577.8,2577.7,6.587]
[1750041692602,0.82621324,2577.8,2577.6,3.2078]
[1750041692603,0.77576,2577.7,2577.6,3.2078]
[1750041693110,0.82624324,2577.7,2577.6,3.2078]
[1750041693295,2.16624324,2577.7,2577.6,3.2078]
[1750041694706,2.1608442,2577.7,2577.6,3.2078]
[1750041695102,2.11576,2577.7,2577.6,3.2078]
[1750041695307,2.15544516,2577.7,2577.6,3.2078]
[1750041697010,2.13638879,2577.7,2577.6,3.2078]
[1750041697913,2.11576,2577.7,2577.6,3.2078]
[1750041699009,0.77582,2577.5,2577.4,0.00582626]
[1750041700211,0.77594,2577.1,2577.0,0.6686]
[1750041700606,0.77597,2577.0,2576.9,3.2078]
[1750041700802,0.77597,2577.0,2575.8,1.94083]
[1750041700803,0.77597,2577.0,2575.9,1.42256308]
[1750041701006,0.77597,2577.0,2575.6,43.06066653]
[1750041701007,0.77607,2576.7,2576.3,3.98397]
[1750041701207,0.7761,2576.6,2576.4,1.2885]
[1750041701510,3.2078,2576.7,2576.2,0.00582626]
[1750041701707,0.77614,2576.5,2576.2,0.00582626]
[1750041701906,0.77616,2576.4,2576.2,0.00582626]
[1750041703518,0.77616,2576.4,2576.3,0.03037896]
[1750041703709,0.77616,2576.4,2576.2,0.00582626]
[1750041704810,0.77616,2576.4,2576.3,3.2078]
[1750041705410,6.587,2576.7,2576.3,3.2078]
[1750041705619,0.77609,2576.6,2576.5,0.02627614]
[1750041705814,6.587,2576.7,2576.3,3.2078]
[1750041705815,0.77615,2576.5,2576.3,3.2078]
[1750041706417,0.77615,2576.4,2576.3,4.5139]
[1750041707918,0.77615,2576.4,2576.3,3.2078]
[1750041708515,0.77613,2576.5,2576.3,3.2078]
[1750041708717,0.77615,2576.4,2576.3,5.1102]
[1750041709316,0.00582626,2576.8,2576.6,0.77608]
[1750041709518,0.00582626,2576.8,2576.7,3.2078]
[1750041709724,0.78185626,2576.8,2576.7,5.1361]
[1750041710619,0.00582626,2576.8,2576.4,50.5968]
[1750041710823,0.00582626,2576.8,2576.4,44.6871]
[1750041711015,0.77612,2576.6,2576.4,44.6871]
[1750041711214,0.77608,2576.7,2576.4,44.6871]
[1750041711414,0.77608,2576.7,2576.5,0.02714917]
[1750041711712,0.10074439,2576.5,2576.4,5.1361]
[1750041712718,0.00582626,2576.8,2576.4,5.0353767]
[1750041713017,0.77611,2576.6,2576.4,5.0353767]
[1750041713323,0.77612,2576.5,2576.4,3.1070767]
[1750041714524,0.77612,2576.5,2576.4,0.02635044]
[1750041714922,0.77624,2576.1,2576.0,3.2078]
[1750041715114,24.596,2576.3,2576.0,3.2078]
[1750041715319,0.77623,2576.2,2576.0,4.5252]
[1750041715719,0.77624,2576.1,2576.0,4.5252]
[1750041715921,0.77624,2576.1,2576.0,3.2078]
[1750041717020,0.77624,2576.1,2575.8,0.67571716]
[1750041717021,0.7763,2575.9,2575.8,0.00391716]
[1750041718335,25.3723,2575.9,2575.8,0.00391716]
[1750041719825,0.7763,2575.9,2575.8,0.00391716]
[1750041720026,25.3693,2575.9,2575.8,0.00391716]
[1750041720326,7.3138,2576.1,2575.8,0.00391716]
[1750041720327,0.77626,2576.1,2575.8,0.00391716]
[1750041720521,24.582,2576.2,2575.8,0.00391716]
[1750041720721,0.7763,2575.9,2575.8,0.00391716]
[1750041721326,3.2078,2576.3,2575.8,0.00391716]
[1750041721530,0.77623,2576.2,2576.0,4.35225884]
[1750041721719,0.77623,2576.2,2576.1,0.6779]
[1750041721920,3.2078,2576.3,2576.1,2.0243]
[1750041722120,0.77618,2576.3,2576.2,3.2078]
[1750041722718,0.77621,2576.2,2576.1,2.0243]
[1750041722936,0.77621,2576.2,2576.1,0.6779]
[1750041723224,24.572,2576.5,2575.8,11.21311716]
[1750041723430,0.77628,2576.0,2575.8,11.21311716]
[1750041723929,0.77628,2576.0,2575.8,4.55811716]
[1750041725228,0.7763,2575.9,2575.8,4.55811716]
[1750041725422,0.7763,2575.9,2575.8,3.21171716]
[1750041725619,0.77629,2576.0,2575.8,3.21171716]
[1750041725823,0.03225272,2575.9,2575.8,3.21171716]
[1750041726633,0.80855272,2575.9,2575.8,3.21171716]
[1750041726824,0.03225272,2575.9,2575.8,3.21171716]
[1750041727023,0.80855272,2575.9,2575.8,3.21171716]
[1750041727330,0.8362968,2575.9,2575.8,3.21171716]
[1750041729024,0.86404088,2575.9,2575.8,3.21171716]
[1750041729223,0.08774088,2575.9,2575.8,3.21171716]
[1750041729432,0.08774088,2575.9,2575.8,3.98804716]
[1750041729723,0.08774088,2575.9,2575.8,4.50051716]
[1750041729929,0.08774088,2575.9,2575.8,3.21171716]
[1750041730434,0.08774088,2575.9,2575.8,3.98804716]
[1750041730625,0.08774088,2575.9,2575.8,5.32194716]
[1750041733126,26.67313,2576.7,2575.8,5.32194716]
[1750041733127,0.77617,2576.4,2576.1,0.77622]
[1750041733430,0.77617,2576.4,2576.2,5.8373]
[1750041733626,24.52882626,2576.8,2576.2,5.8373]
[1750041733627,0.77618,2576.3,2576.2,5.8373]
[1750041733830,0.77618,2576.3,2576.2,4.5076]
[1750041734027,0.77617,2576.4,2576.2,4.5076]
[1750041735122,1.40277,2576.7,2576.4,0.77614]
[1750041735326,0.77607,2576.7,2576.3,5.68195884]
[1750041735538,0.7761,2576.6,2576.3,13.11312884]
[1750041736822,0.77613,2576.5,2576.3,12.33695884]
[1750041737236,0.77607,2576.7,2576.3,13.11312884]
[1750041737734,0.77608,2576.7,2576.5,3.2078]
[1750041738931,0.00582626,2576.8,2576.2,4.5076]
[1750041739138,0.77618,2576.3,2576.2,3.2078]
[1750041739339,6.655,2576.3,2575.8,3.21171716]
[1750041739636,0.7763,2575.9,2575.8,3.21171716]
[1750041740042,0.7763,2575.9,2575.8,0.00391716]
[1750041740434,1.2425,2576.0,2575.8,0.00391716]
[1750041740636,0.7763,2575.9,2575.8,0.00391716]
[1750041740941,25.2753,2575.9,2575.8,0.00391716]
[1750041742337,0.7763,2575.9,2575.8,0.00391716]
[1750041742537,25.2753,2575.9,2575.8,0.00391716]
[1750041742840,0.7763,2575.9,2575.8,0.00391716]
[1750041743040,25.2753,2575.9,2575.8,0.00391716]
[1750041743337,25.9358,2575.9,2575.8,0.00391716]
[1750041745034,0.77629,2576.0,2575.8,0.00391716]
[1750041745226,6.17204642,2576.3,2575.8,0.78024716]
[1750041745425,25.27624,2576.2,2575.8,0.78024716]
[1750041745626,0.77625,2576.1,2575.9,0.6291]
[1750041745834,0.77625,2576.1,2576.0,3.2078]
[1750041746327,0.77624,2576.1,2576.0,3.2078]
[1750041747537,0.77624,2576.1,2575.8,0.00391716]
[1750041747538,0.7763,2575.9,2575.8,0.00391716]
[1750041748734,1.3987,2575.9,2575.8,0.00391716]
[1750041750232,2.765,2575.9,2575.8,0.00391716]
[1750041752346,27.267,2575.9,2575.8,0.00391716]
[1750041752543,5.49344642,2576.3,2575.8,0.78023716]
[1750041752841,5.49344642,2576.3,2576.0,3.2078]
[1750041752842,0.77623,2576.2,2576.0,3.2078]
[1750041753442,0.77623,2576.2,2576.0,4.5441]
[1750041753838,0.77618,2576.4,2576.0,5.32037]
[1750041754038,25.1298,2576.5,2576.0,4.5441]
[1750041754346,0.77624,2576.1,2576.0,3.2078]
[1750041754539,0.77623,2576.2,2576.0,3.2078]
[1750041754845,1.2398,2576.3,2576.0,3.2078]
[1750041755145,1.2398,2576.3,2575.9,0.6203]
[1750041755445,4.4476,2576.3,2575.8,7.21671716]
[1750041755640,0.7763,2575.9,2575.8,7.21671716]
[1750041756042,0.6278,2576.5,2575.8,0.62371716]
[1750041756341,0.6278,2576.5,2576.0,7.56005884]
[1750041756543,3.2078,2576.6,2576.3,4.35225884]
[1750041756742,3.98391,2576.6,2576.4,0.653]
[1750041757144,0.77612,2576.5,2576.4,0.653]
[1750041757746,3.2078,2576.6,2576.1,1.9585]
[1750041757945,0.77619,2576.3,2576.1,2.6115]
[1750041758144,0.77619,2576.3,2576.1,1.3358]
[1750041759749,0.77621,2576.2,2576.1,1.3358]
[1750041761344,0.7763,2575.9,2575.8,0.00391716]
[1750041761552,0.6756,2576.6,2575.8,4.356176]
[1750041761753,0.6756,2576.6,2576.5,3.2078]
[1750041761938,1.45169,2576.6,2576.5,3.2078]
[1750041762142,0.77608,2576.7,2576.5,3.2078]
[1750041762355,0.77609,2576.6,2576.5,3.2078]
[1750041762547,0.77608,2576.7,2576.5,3.2078]
[1750041762944,0.77608,2576.7,2576.5,4.4674]
[1750041763651,0.00582626,2576.8,2576.5,3.2078]
[1750041763652,0.77609,2576.6,2576.5,3.2078]
[1750041764351,0.77608,2576.7,2576.5,3.2078]
[1750041764554,0.77609,2576.6,2576.5,3.2078]
[1750041764940,0.77608,2576.7,2576.5,3.2078]
[1750041765140,0.00582626,2576.8,2576.5,3.2078]
[1750041765347,0.00582626,2576.8,2576.6,1.2881]
[1750041765753,0.00582626,2576.8,2576.7,0.6297]
[1750041766447,0.78185626,2576.8,2576.7,0.6297]
[1750041766652,0.78185626,2576.8,2576.5,3.2078]
[1750041766653,5.00582626,2576.8,2576.0,4.35017706]
[1750041766854,0.77624,2576.1,2576.0,3.2078]
[1750041767654,2.6361,2576.5,2576.0,3.2078]
[1750041767960,0.77624,2576.1,2576.0,3.2078]
[1750041769952,0.7763,2575.9,2575.8,0.00391716]
[1750041772046,0.6596,2576.0,2575.8,0.00391716]
[1750041772251,1.43588,2576.0,2575.8,0.00391716]
[1750041773058,1.2603,2576.4,2575.8,0.78023716]
[1750041773251,0.77625,2576.1,2575.9,3.2078]
[1750041773762,0.77627,2576.0,2575.9,3.2078]
[1750041774355,0.77626,2576.1,2575.9,3.2078]
[1750041774959,7.2656,2576.4,2576.0,4.35225884]
[1750041775255,7.2656,2576.4,2576.2,3.2078]
[1750041775256,8.04177,2576.4,2576.2,3.2078]
[1750041775656,0.77618,2576.3,2576.2,3.2078]
[1750041776156,4.63314,2576.5,2576.2,3.2078]
[1750041776656,6.593,2576.6,2576.2,3.2078]
[1750041776657,0.77611,2576.6,2576.3,1.42368]
[1750041776856,0.77611,2576.6,2576.3,2.66338]
[1750041777058,0.77613,2576.5,2576.3,1.8872]
[1750041777351,26.41202626,2576.8,2576.3,1.8872]
[1750041777552,24.498,2576.7,2576.3,1.8872]
[1750041777751,0.77612,2576.6,2576.3,1.8872]
[1750041778072,0.77613,2576.5,2576.3,1.8872]
[1750041778447,0.77611,2576.6,2576.3,1.8872]
[1750041778956,0.77613,2576.5,2576.3,1.8872]
[1750041779357,0.7761,2576.6,2576.3,1.8872]
[1750041779556,0.7761,2576.6,2576.3,2.66338]
[1750041779857,0.77615,2576.4,2576.3,0.6475]
[1750041780556,0.77618,2576.3,2576.2,3.2078]
[1750041780751,27.7038,2576.5,2576.0,0.6389]
[1750041780951,2.0325,2576.4,2576.0,0.6389]
[1750041781173,0.7763,2575.9,2575.8,3.21171716]
[1750041781547,0.7763,2576.0,2575.8,3.21171716]
[1750041781755,0.7763,2575.9,2575.8,3.21171716]
[1750041784754,0.7763,2575.9,2575.8,0.00391716]
[1750041785051,0.77639,2575.6,2575.5,3.2078]
[1750041787160,0.77643,2575.5,2575.2,9.7988]
[1750041787362,2.5038,2575.8,2575.2,11.1225]
[1750041787557,0.77649,2575.3,2575.2,3.2078]
[1750041790456,0.77657,2575.1,2574.9,3.2078]
[1750041790663,0.77658,2575.0,2574.9,3.2078]
[1750041792460,0.77661,2574.9,2574.8,1.2895]
[1750041795670,0.77659,2575.0,2574.8,1.2895]
[1750041795868,0.77659,2575.0,2574.8,2.5331]
[1750041796167,3.2078,2575.2,2574.8,2.5331]
[1750041796465,0.7766,2575.0,2574.8,2.5331]
[1750041797371,0.77661,2574.9,2574.8,1.2895]
[1750041797563,0.77659,2575.0,2574.8,1.2895]
[1750041797762,3.2078,2575.2,2574.8,1.2895]
[1750041797967,0.7766,2575.0,2574.8,1.2895]
[1750041798173,0.77661,2574.9,2574.8,1.2895]
[1750041798467,0.77659,2575.0,2574.8,1.2895]
[1750041798765,0.77661,2574.9,2574.8,1.2895]
[1750041799765,0.77659,2575.0,2574.8,1.2895]
[1750041800264,0.77661,2574.9,2574.8,1.2895]
[1750041801669,27.7098,2575.2,2574.8,2.06612]
[1750041801867,3.98433,2575.2,2574.8,1.2895]
[1750041802068,0.00582626,2575.3,2575.1,3.98435]
[1750041802270,0.00582626,2575.3,2575.2,0.77652]
[1750041802470,0.00582626,2575.3,2575.2,6.44507884]
[1750041802671,0.00582626,2575.3,2575.2,1.3163]
[1750041802870,0.78231626,2575.3,2575.2,1.3163]
[1750041803164,0.77652,2575.2,2575.1,3.2078]
[1750041803566,0.77652,2575.2,2574.9,0.77659]
[1750041803767,0.77652,2575.2,2574.9,2.10929]
[1750041804271,0.77655,2575.1,2575.0,40.8]
[1750041804459,0.77655,2575.1,2574.9,1.3327]
[1750041804662,0.77661,2574.9,2574.8,1.2895]
[1750041804857,0.77657,2575.1,2574.8,1.2895]
[1750041805061,0.00582626,2575.3,2574.8,1.2895]
[1750041805062,0.78232626,2575.3,2575.0,0.77656]
[1750041805272,0.00582626,2575.3,2575.2,4.35225884]
[1750041805469,0.00582626,2575.3,2575.2,5.68495884]
[1750041806166,0.00582626,2575.3,2575.2,6.46147884]
[1750041806367,3.2078,2575.6,2575.5,0.77642]
[1750041806574,3.98412,2575.9,2575.5,5.12867884]
[1750041806770,3.98412,2575.9,2575.6,2.74808]
[1750041806976,3.2078,2575.9,2575.6,1.9717]
[1750041807176,0.77636,2575.7,2575.6,0.6633]
[1750041807569,0.77642,2575.5,2575.4,0.00582626]
[1750041808072,12.36642,2575.5,2575.4,6.26e-06]
[1750041808276,32.49552,2575.5,2575.4,6.26e-06]
[1750041808475,3.9842,2575.6,2575.4,6.26e-06]
[1750041808776,3.2078,2575.6,2575.4,6.26e-06]
[1750041809163,3.9842,2575.6,2575.4,6.26e-06]
[1750041809771,0.77642,2575.5,2575.4,6.26e-06]
[1750041809970,0.81772106,2575.5,2575.4,6.26e-06]
[1750041811881,2.07722106,2575.5,2575.4,6.26e-06]
[1750041812074,2.11852212,2575.5,2575.4,6.26e-06]
[1750041813177,8.70852212,2575.5,2575.4,6.26e-06]
[1750041813782,13.70852212,2575.5,2575.4,6.26e-06]
[1750041813975,15.99416854,2575.5,2575.4,6.26e-06]
[1750041814282,16.01511417,2575.5,2575.4,6.26e-06]
[1750041816086,15.91156642,2575.5,2575.4,6.26e-06]
[1750041816289,16.0360598,2575.5,2575.4,6.26e-06]
[1750041817286,4.4460598,2575.5,2575.4,6.26e-06]
[1750041817494,33.24941338,2575.5,2575.4,6.26e-06]
[1750041817987,31.98991338,2575.5,2575.4,6.26e-06]
[1750041818283,0.90091338,2575.5,2575.4,6.26e-06]
[1750041818491,31.98991338,2575.5,2575.4,6.26e-06]
[1750041819592,0.77664,2574.8,2574.7,1.14166151]
[1750041819886,0.77664,2574.8,2574.7,0.6548]
[1750041820287,0.12449338,2574.8,2574.7,1.8978]
[1750041820888,0.90113338,2574.8,2574.7,1.8978]
[1750041821084,0.77664,2574.8,2574.7,1.8978]
[1750041821283,0.90303668,2574.8,2574.7,1.8978]
[1750041823691,0.90303668,2574.8,2574.7,0.6548]
[1750041824590,0.77667,2574.7,2574.6,0.634]
[1750041825180,0.77673,2574.5,2574.4,0.6477]
[1750041825986,0.77673,2574.5,2574.0,1.14166151]
[1750041825987,3.2078,2574.5,2574.0,1.14166151]
[1750041826292,0.12639668,2574.3,2573.9,2.6185]
[1750041826495,0.77688,2574.0,2573.9,2.6185]
[1750041826993,0.92617363,2574.0,2573.9,1.2787]
[1750041827387,0.92617363,2574.0,2573.9,0.6477]
[1750041827595,0.14929363,2574.0,2573.5,7.2139]
[1750041827984,0.77699,2573.7,2573.5,7.2139]
[1750041828192,0.14929363,2573.8,2573.5,7.2139]
[1750041828193,0.777,2573.6,2573.5,7.2139]
[1750041828385,0.77698,2573.7,2573.5,7.2139]
[1750041828786,0.14929363,2573.8,2573.5,7.2139]
[1750041828787,0.17219058,2573.6,2573.5,7.99093]
[1750041829296,25.27786,2574.1,2573.9,0.06737406]
[1750041829491,25.27786,2574.1,2574.0,0.6683]
[1750041830393,24.501,2574.1,2574.0,0.6683]